[Event "Titled Tuesday Blitz January 04 2022"]
[White "Akesson, Ralf"]
[Black "Ibarra Jerez, Jose Carlos"]
[WhiteFideId "1700120"]
[BlackFideId "2226332"]
[WhiteElo "2341"]
[BlackElo "2626"]
[Result "0-1"]
[Round "06"]
[TimeControl "180+1"]
[Date "2022.01.04"]
[WhiteClock "0:00:03"]
[BlackClock "0:00:21"]

1. d4 {[%clk 0:02:55]}  Nf6 {[%clk 0:02:58]} 2. c4 {[%clk 0:02:55]}  d6 {[%clk 0:02:57]} 3. Nc3 {[%clk 0:02:53]}  e5 {[%clk 0:02:58]} 4. dxe5 {[%clk 0:02:49]}  dxe5 {[%clk 0:02:58]} 5. Qxd8+ {[%clk 0:02:49]}  Kxd8 {[%clk 0:02:59]} 6. g3 {[%clk 0:02:47]}  Be6 {[%clk 0:02:58]} 7. b3 {[%clk 0:02:44]}  Nfd7 {[%clk 0:02:56]} 8. Bg2 {[%clk 0:02:41]}  c6 {[%clk 0:02:56]} 9. Bb2 {[%clk 0:02:34]}  f6 {[%clk 0:02:55]} 10. Nf3 {[%clk 0:02:32]}  Kc7 {[%clk 0:02:54]} 11. O-O {[%clk 0:02:30]}  a5 {[%clk 0:02:50]} 12. Nd2 {[%clk 0:02:26]}  Nc5 {[%clk 0:02:48]} 13. a3 {[%clk 0:02:22]}  Nbd7 {[%clk 0:02:29]} 14. Rfc1 {[%clk 0:02:21]}  Na6 {[%clk 0:02:06]} 15. Nd5+ {[%clk 0:02:06]}  Kd8 {[%clk 0:02:02]} 16. Ne3 {[%clk 0:02:01]}  Ndc5 {[%clk 0:01:55]} 17. Bc3 {[%clk 0:01:56]}  Nb8 {[%clk 0:01:41]} 18. Rab1 {[%clk 0:01:50]}  Kc7 {[%clk 0:01:33]} 19. b4 {[%clk 0:01:49]}  Na4 {[%clk 0:01:32]} 20. Ba1 {[%clk 0:01:48]}  axb4 {[%clk 0:01:33]} 21. axb4 {[%clk 0:01:47]}  Nd7 {[%clk 0:01:32]} 22. Nd5+ {[%clk 0:01:35]}  Kd8 {[%clk 0:01:31]} 23. Nc3 {[%clk 0:01:35]}  Be7 {[%clk 0:01:26]} 24. Nxa4 {[%clk 0:01:28]}  Rxa4 {[%clk 0:01:25]} 25. c5 {[%clk 0:01:23]}  Kc7 {[%clk 0:01:13]} 26. Bc3 {[%clk 0:01:22]}  Rha8 {[%clk 0:01:08]} 27. Kf1 {[%clk 0:01:21]}  Ra2 {[%clk 0:01:06]} 28. Ra1 {[%clk 0:01:18]}  R8a3 {[%clk 0:01:01]} 29. Rxa2 {[%clk 0:01:13]}  Rxa2 {[%clk 0:01:02]} 30. Ke1 {[%clk 0:01:12]}  Bd5 {[%clk 0:00:47]} 31. Bh3 {[%clk 0:01:05]}  Nb8 {[%clk 0:00:43]} 32. Bf5 {[%clk 0:00:55]}  g6 {[%clk 0:00:38]} 33. Bd3 {[%clk 0:00:53]}  Nd7 {[%clk 0:00:34]} 34. Ra1 {[%clk 0:00:51]}  Rxa1+ {[%clk 0:00:32]} 35. Bxa1 {[%clk 0:00:51]}  b6 {[%clk 0:00:32]} 36. cxb6+ {[%clk 0:00:48]}  Nxb6 {[%clk 0:00:33]} 37. b5 {[%clk 0:00:40]}  c5 {[%clk 0:00:33]} 38. Bc3 {[%clk 0:00:33]}  c4 {[%clk 0:00:33]} 39. Bc2 {[%clk 0:00:29]}  Bc5 {[%clk 0:00:32]} 40. e3 {[%clk 0:00:26]}  Be6 {[%clk 0:00:28]} 41. Ne4 {[%clk 0:00:25]}  Be7 {[%clk 0:00:27]} 42. Ba5 {[%clk 0:00:24]}  f5 {[%clk 0:00:26]} 43. Nc3 {[%clk 0:00:23]}  Kb7 {[%clk 0:00:25]} 44. e4 {[%clk 0:00:20]}  f4 {[%clk 0:00:25]} 45. Kd2 {[%clk 0:00:10]}  Bc5 {[%clk 0:00:23]} 46. f3 {[%clk 0:00:03]}  Bg1 {[%clk 0:00:21]} 0-1


[Site "https://www.chess.com"]

[Event "Titled Tuesday Blitz January 04 2022"]
[White "Danada, Tomas"]
[Black "Harutjunyan, Gevorg"]
[WhiteFideId "14919362"]
[BlackFideId "13300873"]
[WhiteElo "2051"]
[BlackElo "2498"]
[Result "0-1"]
[Round "06"]
[TimeControl "180+1"]
[Date "2022.01.04"]
[WhiteClock "0:00:01"]
[BlackClock "0:01:00"]

1. Nf3 {[%clk 0:02:59]}  d5 {[%clk 0:03:00]} 2. d4 {[%clk 0:02:59]}  Nc6 {[%clk 0:03:00]} 3. c4 {[%clk 0:02:58]}  Bg4 {[%clk 0:03:01]} 4. cxd5 {[%clk 0:02:58]}  Bxf3 {[%clk 0:03:01]} 5. gxf3 {[%clk 0:02:59]}  Qxd5 {[%clk 0:03:01]} 6. e3 {[%clk 0:03:00]}  e5 {[%clk 0:03:01]} 7. Nc3 {[%clk 0:03:01]}  Bb4 {[%clk 0:03:02]} 8. Bd2 {[%clk 0:03:01]}  Bxc3 {[%clk 0:03:03]} 9. bxc3 {[%clk 0:03:02]}  Qd6 {[%clk 0:03:03]} 10. Qb3 {[%clk 0:03:02]}  Nge7 {[%clk 0:03:03]} 11. Qxb7 {[%clk 0:02:59]}  Rb8 {[%clk 0:03:01]} 12. Qa6 {[%clk 0:02:59]}  O-O {[%clk 0:03:02]} 13. Be2 {[%clk 0:02:47]}  Qg6 {[%clk 0:02:51]} 14. Bd3 {[%clk 0:02:15]}  f5 {[%clk 0:02:35]} 15. d5 {[%clk 0:02:01]}  Nxd5 {[%clk 0:02:31]} 16. Bc4 {[%clk 0:01:51]}  Rbd8 {[%clk 0:02:23]} 17. O-O-O {[%clk 0:01:42]}  Kh8 {[%clk 0:02:06]} 18. Rhg1 {[%clk 0:01:42]}  Qf6 {[%clk 0:02:02]} 19. e4 {[%clk 0:01:41]}  Nb6 {[%clk 0:02:01]} 20. Bd5 {[%clk 0:01:26]}  Nxd5 {[%clk 0:01:58]} 21. Bg5 {[%clk 0:01:25]}  Qe6 {[%clk 0:01:55]} 22. Bxd8 {[%clk 0:00:45]}  Nxc3 {[%clk 0:01:55]} 23. Qa3 {[%clk 0:00:45]}  Nxa2+ {[%clk 0:01:51]} 24. Kb2 {[%clk 0:00:44]}  Nab4 {[%clk 0:01:48]} 25. Bxc7 {[%clk 0:00:40]}  fxe4 {[%clk 0:01:46]} 26. Rd6 {[%clk 0:00:21]}  Qf7 {[%clk 0:01:29]} 27. Rc1 {[%clk 0:00:13]}  Qxc7 {[%clk 0:01:19]} 28. Rdxc6 {[%clk 0:00:11]}  Qb8 {[%clk 0:01:19]} 29. R6c3 {[%clk 0:00:08]}  Nd3+ {[%clk 0:01:15]} 30. Ka1 {[%clk 0:00:05]}  Nxc1 {[%clk 0:01:15]} 31. Qxc1 {[%clk 0:00:04]}  exf3 {[%clk 0:01:14]} 32. Qe3 {[%clk 0:00:02]}  Qb6 {[%clk 0:01:02]} 33. Qd2 {[%clk 0:00:01]}  Rb8 {[%clk 0:01:00]} 34. Qc2 {[%clk 0:00:01]}  Qa6+ {[%clk 0:01:00]} 0-1


[Site "https://www.chess.com"]

[Event "Titled Tuesday Blitz January 04 2022"]
[White "Djordjevic, Vuk"]
[Black "Papp, Levente"]
[WhiteFideId "902098"]
[BlackFideId "751243"]
[WhiteElo "2463"]
[BlackElo "2308"]
[Result "1-0"]
[Round "06"]
[TimeControl "180+1"]
[Date "2022.01.04"]
[WhiteClock "0:00:29"]
[BlackClock "0:00:06"]

1. d4 {[%clk 0:03:00]}  e6 {[%clk 0:03:00]} 2. Nf3 {[%clk 0:03:00]}  Nf6 {[%clk 0:03:00]} 3. Bg5 {[%clk 0:03:00]}  d5 {[%clk 0:02:53]} 4. e3 {[%clk 0:02:59]}  Nbd7 {[%clk 0:02:53]} 5. c4 {[%clk 0:02:59]}  h6 {[%clk 0:02:52]} 6. Bh4 {[%clk 0:02:58]}  Be7 {[%clk 0:02:52]} 7. Nc3 {[%clk 0:02:57]}  O-O {[%clk 0:02:52]} 8. Bd3 {[%clk 0:02:56]}  c5 {[%clk 0:02:34]} 9. cxd5 {[%clk 0:02:47]}  cxd4 {[%clk 0:02:31]} 10. dxe6 {[%clk 0:02:43]}  dxc3 {[%clk 0:02:30]} 11. exd7 {[%clk 0:02:38]}  cxb2 {[%clk 0:02:23]} 12. Rb1 {[%clk 0:02:35]}  Qa5+ {[%clk 0:02:16]} 13. Nd2 {[%clk 0:02:17]}  Bxd7 {[%clk 0:02:16]} 14. Rxb2 {[%clk 0:02:17]}  Bc6 {[%clk 0:02:08]} 15. O-O {[%clk 0:02:13]}  Rad8 {[%clk 0:02:03]} 16. Rb3 {[%clk 0:01:49]}  Ba4 {[%clk 0:01:45]} 17. Qe2 {[%clk 0:01:48]}  Bxb3 {[%clk 0:01:44]} 18. Nxb3 {[%clk 0:01:48]}  Qb4 {[%clk 0:01:33]} 19. Nd4 {[%clk 0:01:44]}  Nd5 {[%clk 0:01:17]} 20. Bxe7 {[%clk 0:01:38]}  Qxe7 {[%clk 0:01:17]} 21. Qg4 {[%clk 0:01:29]}  Nf6 {[%clk 0:01:13]} 22. Qf3 {[%clk 0:01:22]}  Rd7 {[%clk 0:00:58]} 23. Rb1 {[%clk 0:01:19]}  Qe5 {[%clk 0:00:43]} 24. g3 {[%clk 0:01:06]}  b6 {[%clk 0:00:35]} 25. Rb5 {[%clk 0:01:05]}  Rd5 {[%clk 0:00:34]} 26. Rb3 {[%clk 0:01:05]}  Rc8 {[%clk 0:00:30]} 27. Kg2 {[%clk 0:01:03]}  Rdd8 {[%clk 0:00:28]} 28. Nc6 {[%clk 0:00:59]}  Qd5 {[%clk 0:00:17]} 29. Ne7+ {[%clk 0:00:58]}  Kf8 {[%clk 0:00:16]} 30. Nxd5 {[%clk 0:00:58]}  Rxd5 {[%clk 0:00:17]} 31. Ra3 {[%clk 0:00:56]}  a5 {[%clk 0:00:11]} 32. Rb3 {[%clk 0:00:56]}  a4 {[%clk 0:00:11]} 33. Rxb6 {[%clk 0:00:56]}  Rxd3 {[%clk 0:00:10]} 34. Qf5 {[%clk 0:00:47]}  Rcd8 {[%clk 0:00:10]} 35. Ra6 {[%clk 0:00:41]}  a3 {[%clk 0:00:10]} 36. Rxa3 {[%clk 0:00:39]}  Rd2 {[%clk 0:00:10]} 37. Ra7 {[%clk 0:00:35]}  Kg8 {[%clk 0:00:09]} 38. a4 {[%clk 0:00:34]}  Rb2 {[%clk 0:00:08]} 39. a5 {[%clk 0:00:31]}  Nd5 {[%clk 0:00:06]} 40. Qxf7+ {[%clk 0:00:29]} 1-0


[Site "https://www.chess.com"]

[Event "Titled Tuesday Blitz January 04 2022"]
[White "Gareyev, Timur"]
[Black "Migot, Tangi"]
[WhiteFideId "14200937"]
[BlackFideId "662445"]
[WhiteElo "2586"]
[BlackElo "2527"]
[Result "1-0"]
[Round "06"]
[TimeControl "180+1"]
[Date "2022.01.04"]
[WhiteClock "0:00:18"]
[BlackClock "0:00:20"]

1. c4 {[%clk 0:02:57]}  Nf6 {[%clk 0:02:59]} 2. Nf3 {[%clk 0:02:57]}  g6 {[%clk 0:02:59]} 3. g3 {[%clk 0:02:57]}  d5 {[%clk 0:02:59]} 4. Bg2 {[%clk 0:02:58]}  dxc4 {[%clk 0:02:59]} 5. Na3 {[%clk 0:02:57]}  Bg7 {[%clk 0:02:56]} 6. Nxc4 {[%clk 0:02:57]}  Nc6 {[%clk 0:02:56]} 7. d3 {[%clk 0:02:54]}  O-O {[%clk 0:02:55]} 8. O-O {[%clk 0:02:49]}  Be6 {[%clk 0:02:54]} 9. Qc2 {[%clk 0:02:20]}  Rb8 {[%clk 0:02:46]} 10. a3 {[%clk 0:02:16]}  a6 {[%clk 0:02:37]} 11. Bd2 {[%clk 0:02:12]}  Bd5 {[%clk 0:02:28]} 12. Bc3 {[%clk 0:02:03]}  Bxf3 {[%clk 0:02:07]} 13. Bxf3 {[%clk 0:02:00]}  Nd4 {[%clk 0:02:08]} 14. Bxd4 {[%clk 0:01:56]}  Qxd4 {[%clk 0:02:09]} 15. e3 {[%clk 0:01:56]}  Qd8 {[%clk 0:02:02]} 16. d4 {[%clk 0:01:55]}  c6 {[%clk 0:02:02]} 17. Rad1 {[%clk 0:01:51]}  Nd7 {[%clk 0:02:00]} 18. b4 {[%clk 0:01:50]}  Nb6 {[%clk 0:01:52]} 19. Na5 {[%clk 0:01:46]}  e5 {[%clk 0:01:49]} 20. dxe5 {[%clk 0:01:42]}  Qc7 {[%clk 0:01:49]} 21. e6 {[%clk 0:01:31]}  fxe6 {[%clk 0:01:47]} 22. Qe4 {[%clk 0:01:24]}  Kh8 {[%clk 0:01:44]} 23. Qg4 {[%clk 0:01:18]}  Rbe8 {[%clk 0:01:33]} 24. Bg2 {[%clk 0:01:07]}  Nd5 {[%clk 0:01:33]} 25. Qc4 {[%clk 0:01:01]}  Bb2 {[%clk 0:01:22]} 26. Qb3 {[%clk 0:00:56]}  Be5 {[%clk 0:01:06]} 27. Rc1 {[%clk 0:00:55]}  Qf7 {[%clk 0:00:56]} 28. Nc4 {[%clk 0:00:48]}  Bg7 {[%clk 0:00:53]} 29. Nd6 {[%clk 0:00:47]}  Qe7 {[%clk 0:00:54]} 30. Nxe8 {[%clk 0:00:47]}  Rxe8 {[%clk 0:00:55]} 31. Rc4 {[%clk 0:00:46]}  Qg5 {[%clk 0:00:53]} 32. h4 {[%clk 0:00:44]}  Qe5 {[%clk 0:00:52]} 33. Re4 {[%clk 0:00:43]}  Qf6 {[%clk 0:00:51]} 34. Rc4 {[%clk 0:00:38]}  Rf8 {[%clk 0:00:51]} 35. Rc2 {[%clk 0:00:34]}  Qe7 {[%clk 0:00:49]} 36. e4 {[%clk 0:00:31]}  Nf6 {[%clk 0:00:47]} 37. f4 {[%clk 0:00:29]}  Ng4 {[%clk 0:00:47]} 38. e5 {[%clk 0:00:28]}  Rd8 {[%clk 0:00:40]} 39. Bf3 {[%clk 0:00:27]}  Nh6 {[%clk 0:00:40]} 40. Be4 {[%clk 0:00:27]}  Bf8 {[%clk 0:00:37]} 41. Rcc1 {[%clk 0:00:23]}  Ng4 {[%clk 0:00:34]} 42. Rfd1 {[%clk 0:00:23]}  Rxd1+ {[%clk 0:00:33]} 43. Rxd1 {[%clk 0:00:24]}  a5 {[%clk 0:00:34]} 44. Bf3 {[%clk 0:00:24]}  Nh6 {[%clk 0:00:31]} 45. Kg2 {[%clk 0:00:22]}  axb4 {[%clk 0:00:28]} 46. axb4 {[%clk 0:00:23]}  Nf5 {[%clk 0:00:28]} 47. Be4 {[%clk 0:00:23]}  Qe8 {[%clk 0:00:23]} 48. Bxf5 {[%clk 0:00:22]}  gxf5 {[%clk 0:00:24]} 49. Qc4 {[%clk 0:00:20]}  Qe7 {[%clk 0:00:23]} 50. Rd6 {[%clk 0:00:19]}  b5 {[%clk 0:00:21]} 51. Qxe6 {[%clk 0:00:18]}  Qa7 {[%clk 0:00:20]} 52. Qf6+ {[%clk 0:00:18]} 1-0


[Site "https://www.chess.com"]

[Event "Titled Tuesday Blitz January 04 2022"]
[White "Harshavardhan G B"]
[Black "Deac, Bogdan-Daniel"]
[WhiteFideId "25059009"]
[BlackFideId "1226380"]
[WhiteElo "1831"]
[BlackElo "2646"]
[Result "0-1"]
[Round "06"]
[TimeControl "180+1"]
[Date "2022.01.04"]
[WhiteClock "0:00:34"]
[BlackClock "0:00:07"]

1. e4 {[%clk 0:02:54]}  c5 {[%clk 0:02:58]} 2. Nf3 {[%clk 0:02:53]}  d6 {[%clk 0:02:58]} 3. d4 {[%clk 0:02:51]}  cxd4 {[%clk 0:02:59]} 4. Nxd4 {[%clk 0:02:52]}  Nf6 {[%clk 0:03:00]} 5. Nc3 {[%clk 0:02:52]}  a6 {[%clk 0:03:00]} 6. Qf3 {[%clk 0:02:52]}  Nbd7 {[%clk 0:02:56]} 7. h3 {[%clk 0:02:49]}  g6 {[%clk 0:02:53]} 8. Be3 {[%clk 0:02:48]}  Bg7 {[%clk 0:02:51]} 9. g4 {[%clk 0:02:48]}  h6 {[%clk 0:02:39]} 10. O-O-O {[%clk 0:02:47]}  Qc7 {[%clk 0:02:39]} 11. Bg2 {[%clk 0:02:40]}  e5 {[%clk 0:01:45]} 12. Nb3 {[%clk 0:02:34]}  Nb6 {[%clk 0:01:38]} 13. g5 {[%clk 0:02:23]}  hxg5 {[%clk 0:01:30]} 14. Bxg5 {[%clk 0:02:24]}  Nh5 {[%clk 0:01:28]} 15. Be3 {[%clk 0:02:21]}  Be6 {[%clk 0:01:23]} 16. h4 {[%clk 0:02:18]}  Nf4 {[%clk 0:00:48]} 17. Bf1 {[%clk 0:02:07]}  Rc8 {[%clk 0:00:41]} 18. Kb1 {[%clk 0:01:55]}  Nc4 {[%clk 0:00:16]} 19. Bxc4 {[%clk 0:01:43]}  Bxc4 {[%clk 0:00:17]} 20. Bxf4 {[%clk 0:01:39]}  exf4 {[%clk 0:00:18]} 21. h5 {[%clk 0:01:40]}  g5 {[%clk 0:00:18]} 22. Nd4 {[%clk 0:01:36]}  Qb6 {[%clk 0:00:17]} 23. Nf5 {[%clk 0:01:27]}  Bxc3 {[%clk 0:00:10]} 24. Nxd6+ {[%clk 0:01:25]}  Ke7 {[%clk 0:00:10]} 25. Nxc8+ {[%clk 0:01:16]}  Rxc8 {[%clk 0:00:09]} 26. Qxc3 {[%clk 0:01:17]}  Bxa2+ {[%clk 0:00:09]} 27. Kxa2 {[%clk 0:01:18]}  Rxc3 {[%clk 0:00:09]} 28. bxc3 {[%clk 0:01:19]}  Qh6 {[%clk 0:00:05]} 29. f3 {[%clk 0:01:17]}  Kf8 {[%clk 0:00:05]} 30. Rd5 {[%clk 0:01:14]}  Qc6 {[%clk 0:00:04]} 31. h6 {[%clk 0:01:07]}  Qxc3 {[%clk 0:00:04]} 32. Rh2 {[%clk 0:01:03]}  Qc4+ {[%clk 0:00:02]} 33. Kb2 {[%clk 0:01:01]}  Qb4+ {[%clk 0:00:02]} 34. Kc1 {[%clk 0:01:01]}  Qe1+ {[%clk 0:00:03]} 35. Rd1 {[%clk 0:01:00]}  Qe3+ {[%clk 0:00:04]} 36. Kb1 {[%clk 0:00:59]}  Qb6+ {[%clk 0:00:03]} 37. Kc1 {[%clk 0:00:50]}  Qe3+ {[%clk 0:00:03]} 38. Rdd2 {[%clk 0:00:50]}  Kg8 {[%clk 0:00:03]} 39. h7+ {[%clk 0:00:50]}  Kh8 {[%clk 0:00:03]} 40. c4 {[%clk 0:00:47]}  Qc3+ {[%clk 0:00:02]} 41. Kb1 {[%clk 0:00:47]}  Qb3+ {[%clk 0:00:02]} 42. Kc1 {[%clk 0:00:46]}  Qc3+ {[%clk 0:00:03]} 43. Kd1 {[%clk 0:00:45]}  Qxf3+ {[%clk 0:00:03]} 44. Kc2 {[%clk 0:00:44]}  Qxe4+ {[%clk 0:00:03]} 45. Kb3 {[%clk 0:00:44]}  Qe3+ {[%clk 0:00:03]} 46. Ka4 {[%clk 0:00:44]}  Qb6 {[%clk 0:00:04]} 47. Rd5 {[%clk 0:00:40]}  Qc6+ {[%clk 0:00:04]} 48. Kb3 {[%clk 0:00:39]}  Qf6 {[%clk 0:00:04]} 49. Rc5 {[%clk 0:00:36]}  Qb6+ {[%clk 0:00:03]} 50. Rb5 {[%clk 0:00:34]}  axb5 {[%clk 0:00:03]} 51. Kb4 {[%clk 0:00:34]}  bxc4+ {[%clk 0:00:03]} 52. Kxc4 {[%clk 0:00:34]}  f3 {[%clk 0:00:04]} 53. Kd3 {[%clk 0:00:34]}  Qe6 {[%clk 0:00:04]} 54. Rf2 {[%clk 0:00:33]}  g4 {[%clk 0:00:05]} 55. Kd4 {[%clk 0:00:33]}  f5 {[%clk 0:00:05]} 56. Kd3 {[%clk 0:00:33]}  Qe4+ {[%clk 0:00:06]} 57. Kd2 {[%clk 0:00:34]}  g3 {[%clk 0:00:06]} 58. Rxf3 {[%clk 0:00:34]}  Qxf3 {[%clk 0:00:07]} 0-1


[Site "https://www.chess.com"]

[Event "Titled Tuesday Blitz January 04 2022"]
[White "Holt, Conrad"]
[Black "Liyanage, Ranindu Dilshan"]
[WhiteFideId "2034387"]
[BlackFideId "9915834"]
[WhiteElo "2586"]
[BlackElo "1858"]
[Result "0-1"]
[Round "06"]
[TimeControl "180+1"]
[Date "2022.01.04"]
[WhiteClock "0:00:08"]
[BlackClock "0:00:10"]

1. d4 {[%clk 0:03:00]}  Nf6 {[%clk 0:03:00]} 2. c4 {[%clk 0:02:58]}  e6 {[%clk 0:03:00]} 3. Nc3 {[%clk 0:02:58]}  Bb4 {[%clk 0:03:00]} 4. Qc2 {[%clk 0:02:58]}  O-O {[%clk 0:03:00]} 5. e4 {[%clk 0:02:58]}  d5 {[%clk 0:03:00]} 6. e5 {[%clk 0:02:58]}  Ne4 {[%clk 0:03:01]} 7. Bd3 {[%clk 0:02:59]}  c5 {[%clk 0:03:01]} 8. Nf3 {[%clk 0:02:59]}  cxd4 {[%clk 0:03:01]} 9. Nxd4 {[%clk 0:03:00]}  Nd7 {[%clk 0:03:01]} 10. Bf4 {[%clk 0:03:01]}  Qh4 {[%clk 0:03:01]} 11. g3 {[%clk 0:03:01]}  Qh5 {[%clk 0:03:01]} 12. f3 {[%clk 0:02:57]}  Bxc3+ {[%clk 0:02:22]} 13. bxc3 {[%clk 0:02:53]}  Nec5 {[%clk 0:02:16]} 14. g4 {[%clk 0:02:53]}  Qh4+ {[%clk 0:02:02]} 15. Bg3 {[%clk 0:02:53]}  Qg5 {[%clk 0:02:02]} 16. Bxh7+ {[%clk 0:02:51]}  Kh8 {[%clk 0:02:02]} 17. cxd5 {[%clk 0:02:31]}  g6 {[%clk 0:01:23]} 18. dxe6 {[%clk 0:02:25]}  Nxe5 {[%clk 0:01:22]} 19. O-O {[%clk 0:02:21]}  Qe3+ {[%clk 0:01:09]} 20. Kh1 {[%clk 0:02:17]}  Ned3 {[%clk 0:01:06]} 21. Rae1 {[%clk 0:01:11]}  Qh6 {[%clk 0:00:43]} 22. Bd6 {[%clk 0:00:47]}  Bxe6 {[%clk 0:00:43]} 23. Bxc5 {[%clk 0:00:32]}  Nxc5 {[%clk 0:00:20]} 24. Nxe6 {[%clk 0:00:30]}  Nxe6 {[%clk 0:00:21]} 25. Bxg6 {[%clk 0:00:30]}  Nf4 {[%clk 0:00:22]} 26. Bf5 {[%clk 0:00:27]}  Kg7 {[%clk 0:00:22]} 27. g5 {[%clk 0:00:21]}  Qh4 {[%clk 0:00:20]} 28. Qf2 {[%clk 0:00:16]}  Qxf2 {[%clk 0:00:15]} 29. Rxf2 {[%clk 0:00:17]}  Rfe8 {[%clk 0:00:16]} 30. Re4 {[%clk 0:00:16]}  Nd3 {[%clk 0:00:14]} 31. Rfe2 {[%clk 0:00:16]}  Rxe4 {[%clk 0:00:11]} 32. Bxe4 {[%clk 0:00:15]}  Nf4 {[%clk 0:00:10]} 33. Rb2 {[%clk 0:00:15]}  Rc8 {[%clk 0:00:10]} 34. Rxb7 {[%clk 0:00:14]}  Rxc3 {[%clk 0:00:10]} 35. Kg1 {[%clk 0:00:15]}  Ra3 {[%clk 0:00:07]} 36. Rb2 {[%clk 0:00:14]}  Nh3+ {[%clk 0:00:05]} 37. Kg2 {[%clk 0:00:12]}  Nxg5 {[%clk 0:00:06]} 38. Bd5 {[%clk 0:00:13]}  Kf6 {[%clk 0:00:06]} 39. Rb7 {[%clk 0:00:11]}  Ra5 {[%clk 0:00:06]} 40. Bb3 {[%clk 0:00:10]}  Ne6 {[%clk 0:00:06]} 41. Kg3 {[%clk 0:00:09]}  Nd4 {[%clk 0:00:06]} 42. Rxf7+ {[%clk 0:00:08]}  Kg6 {[%clk 0:00:06]} 43. Rb7 {[%clk 0:00:07]}  Nf5+ {[%clk 0:00:06]} 44. Kf2 {[%clk 0:00:07]}  a6 {[%clk 0:00:06]} 45. Rb6+ {[%clk 0:00:07]}  Kg5 {[%clk 0:00:06]} 46. Rc6 {[%clk 0:00:06]}  Nd4 {[%clk 0:00:06]} 47. Rc4 {[%clk 0:00:06]}  Nxb3 {[%clk 0:00:05]} 48. axb3 {[%clk 0:00:07]}  Ra2+ {[%clk 0:00:06]} 49. Kg3 {[%clk 0:00:07]}  Rb2 {[%clk 0:00:06]} 50. Rb4 {[%clk 0:00:07]}  a5 {[%clk 0:00:06]} 51. Rb5+ {[%clk 0:00:07]}  Kg6 {[%clk 0:00:07]} 52. h4 {[%clk 0:00:08]}  Kh6 {[%clk 0:00:07]} 53. Kg4 {[%clk 0:00:07]}  Kg6 {[%clk 0:00:07]} 54. h5+ {[%clk 0:00:07]}  Kg7 {[%clk 0:00:08]} 55. f4 {[%clk 0:00:07]}  Rh2 {[%clk 0:00:08]} 56. Rb7+ {[%clk 0:00:07]}  Kg8 {[%clk 0:00:07]} 57. Kg5 {[%clk 0:00:06]}  Rg2+ {[%clk 0:00:07]} 58. Kf6 {[%clk 0:00:07]}  Rc2 {[%clk 0:00:06]} 59. f5 {[%clk 0:00:07]}  Rc6+ {[%clk 0:00:06]} 60. Kg5 {[%clk 0:00:07]}  Rc3 {[%clk 0:00:06]} 61. h6 {[%clk 0:00:07]}  Rg3+ {[%clk 0:00:05]} 62. Kf6 {[%clk 0:00:07]}  Rc3 {[%clk 0:00:06]} 63. Rb8+ {[%clk 0:00:07]}  Kh7 {[%clk 0:00:06]} 64. Ke6 {[%clk 0:00:07]}  Rc6+ {[%clk 0:00:06]} 65. Ke7 {[%clk 0:00:07]}  Rc7+ {[%clk 0:00:06]} 66. Kd6 {[%clk 0:00:07]}  Rf7 {[%clk 0:00:06]} 67. Ke6 {[%clk 0:00:07]}  Rb7 {[%clk 0:00:06]} 68. f6 {[%clk 0:00:08]}  Rxb8 {[%clk 0:00:07]} 69. f7 {[%clk 0:00:06]}  Kxh6 {[%clk 0:00:07]} 70. Kf6 {[%clk 0:00:06]}  Rc8 {[%clk 0:00:04]} 71. Ke6 {[%clk 0:00:06]}  Kg7 {[%clk 0:00:04]} 72. Kd7 {[%clk 0:00:06]}  Rb8 {[%clk 0:00:04]} 73. Kc7 {[%clk 0:00:06]}  Rxb3 {[%clk 0:00:04]} 74. Kc6 {[%clk 0:00:07]}  Kf8 {[%clk 0:00:05]} 75. Kc5 {[%clk 0:00:07]}  a4 {[%clk 0:00:05]} 76. Kd5 {[%clk 0:00:07]}  Rb8 {[%clk 0:00:06]} 77. Ke4 {[%clk 0:00:07]}  a3 {[%clk 0:00:07]} 78. Kf5 {[%clk 0:00:08]}  a2 {[%clk 0:00:08]} 79. Kg6 {[%clk 0:00:08]}  a1=Q {[%clk 0:00:08]} 80. Kh6 {[%clk 0:00:08]}  Qg7+ {[%clk 0:00:09]} 81. Kh5 {[%clk 0:00:09]}  Rb1 {[%clk 0:00:09]} 82. Kh4 {[%clk 0:00:08]}  Rh1# {[%clk 0:00:10]} 0-1


[Site "https://www.chess.com"]

[Event "Titled Tuesday Blitz January 04 2022"]
[White "Kosakowski, Jakub"]
[Black "Babazada, Khazar"]
[WhiteFideId "1185080"]
[BlackFideId "13413554"]
[WhiteElo "2476"]
[BlackElo "2418"]
[Result "0-1"]
[Round "06"]
[TimeControl "180+1"]
[Date "2022.01.04"]
[WhiteClock "0:00:29"]
[BlackClock "0:00:16"]

1. e4 {[%clk 0:03:00]}  Nf6 {[%clk 0:03:00]} 2. e5 {[%clk 0:03:00]}  Nd5 {[%clk 0:03:00]} 3. d4 {[%clk 0:03:00]}  d6 {[%clk 0:02:59]} 4. Bc4 {[%clk 0:03:00]}  Nb6 {[%clk 0:02:57]} 5. Bb3 {[%clk 0:02:59]}  g6 {[%clk 0:02:57]} 6. Nf3 {[%clk 0:02:58]}  Bg7 {[%clk 0:02:57]} 7. h3 {[%clk 0:02:58]}  O-O {[%clk 0:02:57]} 8. Qe2 {[%clk 0:02:57]}  Nc6 {[%clk 0:02:57]} 9. O-O {[%clk 0:02:56]}  dxe5 {[%clk 0:02:45]} 10. dxe5 {[%clk 0:02:56]}  Nd4 {[%clk 0:02:46]} 11. Nxd4 {[%clk 0:02:56]}  Qxd4 {[%clk 0:02:47]} 12. Re1 {[%clk 0:02:57]}  Be6 {[%clk 0:02:48]} 13. Nd2 {[%clk 0:02:57]}  Rad8 {[%clk 0:02:43]} 14. Nf3 {[%clk 0:02:56]}  Qc5 {[%clk 0:02:43]} 15. Be3 {[%clk 0:02:51]}  Qa5 {[%clk 0:02:40]} 16. c4 {[%clk 0:02:51]}  Nd7 {[%clk 0:02:32]} 17. Bf4 {[%clk 0:02:41]}  Qa6 {[%clk 0:02:21]} 18. Qe3 {[%clk 0:02:24]}  Bxc4 {[%clk 0:02:15]} 19. Bxc4 {[%clk 0:02:22]}  Qxc4 {[%clk 0:02:16]} 20. Rac1 {[%clk 0:02:16]}  Qxa2 {[%clk 0:01:50]} 21. Rxc7 {[%clk 0:02:15]}  Qd5 {[%clk 0:01:40]} 22. Bh6 {[%clk 0:02:00]}  Rc8 {[%clk 0:01:29]} 23. Rxc8 {[%clk 0:01:49]}  Rxc8 {[%clk 0:01:30]} 24. Bxg7 {[%clk 0:01:49]}  Kxg7 {[%clk 0:01:30]} 25. e6 {[%clk 0:01:50]}  fxe6 {[%clk 0:01:23]} 26. Qxa7 {[%clk 0:01:48]}  Nf6 {[%clk 0:00:59]} 27. Nd4 {[%clk 0:01:45]}  e5 {[%clk 0:00:58]} 28. Nf3 {[%clk 0:01:21]}  e4 {[%clk 0:00:57]} 29. Nd4 {[%clk 0:01:21]}  Rc4 {[%clk 0:00:32]} 30. Rd1 {[%clk 0:00:55]}  Kf7 {[%clk 0:00:31]} 31. b3 {[%clk 0:00:55]}  Rc5 {[%clk 0:00:29]} 32. Qa1 {[%clk 0:00:53]}  Qe5 {[%clk 0:00:27]} 33. Qa2 {[%clk 0:00:53]}  Rd5 {[%clk 0:00:24]} 34. b4 {[%clk 0:00:52]}  e6 {[%clk 0:00:24]} 35. Qc4 {[%clk 0:00:52]}  Qd6 {[%clk 0:00:23]} 36. Rd2 {[%clk 0:00:47]}  Nd7 {[%clk 0:00:23]} 37. Nb5 {[%clk 0:00:47]}  Qc6 {[%clk 0:00:21]} 38. Qxc6 {[%clk 0:00:45]}  bxc6 {[%clk 0:00:22]} 39. Nd6+ {[%clk 0:00:45]}  Ke7 {[%clk 0:00:19]} 40. Nxe4 {[%clk 0:00:46]}  Rxd2 {[%clk 0:00:15]} 41. Nxd2 {[%clk 0:00:47]}  Nb6 {[%clk 0:00:15]} 42. Nb3 {[%clk 0:00:33]}  Nd5 {[%clk 0:00:15]} 43. Nd4 {[%clk 0:00:33]}  Kd6 {[%clk 0:00:15]} 44. Nc2 {[%clk 0:00:29]}  Nc3 {[%clk 0:00:16]} 45. Kf1 {[%clk 0:00:29]}  Kd5 {[%clk 0:00:16]} 46. Ke1 {[%clk 0:00:29]}  Kc4 {[%clk 0:00:16]} 47. Kd2 {[%clk 0:00:30]}  Nd5 {[%clk 0:00:14]} 48. g3 {[%clk 0:00:28]}  Nxb4 {[%clk 0:00:14]} 49. Ne3+ {[%clk 0:00:28]}  Kd4 {[%clk 0:00:14]} 50. Ng4 {[%clk 0:00:29]}  c5 {[%clk 0:00:14]} 51. Nf6 {[%clk 0:00:29]}  c4 {[%clk 0:00:15]} 52. Nxh7 {[%clk 0:00:29]}  c3+ {[%clk 0:00:15]} 53. Kc1 {[%clk 0:00:29]}  Kd3 {[%clk 0:00:16]} 0-1


[Site "https://www.chess.com"]